Cogmind - Beta 15 @@@ ROGUE MODE // 2025.05.06 @ 22:01:07 Player: aloola Result: Destroyed by VR-4YM(j) with Overtuned Pulse Rifle Performance ------------- Evolutions (0) 0 Regions Visited (3) 600 Robots Destroyed (5) 25 Value Destroyed (142) 142 Prototype IDs (18) 360 Alien Tech Used (0) 0 Bonus (800) 800 TOTAL SCORE: 1927 Bonus ------- Registered with UFD 300 Met Optimus in HQ 500 Cogmind --------- Core Integrity 0/250 Matter 300/300 Energy 200/200 System Corruption 2% Temperature Cool (52) Movement Rolling (120) Ox2 Location -8/Scraptown Parts ------- > --- POWER (1) -------- Subdweller Power Source > --- PROPULSION (2) --- Armored Wheel > --- UTILITY (2) ------ Large Storage Unit > --- WEAPON (2) ------- (None) > --- INVENTORY (15) --- Nuclear Core Deep Structural Scanner Improved Sensor Array Improved Signal Interpreter IFF Parser Improved Terrain Scanner Experimental Terrain Scanner Surveybot 17 Chip Seismic Detector Hacking Suite Makeshift Hacking Suite Plasma Cannon Subdweller Machine Gun Grenade Launcher Peak State ------------ > --- POWER ------------ Subdweller Power Source > --- PROPULSION ------- Armored Wheel Subdweller Monowheel > --- UTILITY ---------- Large Storage Unit Improved Light Armor Plating > --- WEAPON ----------- Gauss Cannon Enhanced Flamer > --- INVENTORY -------- Nuclear Core Deep Structural Scanner Improved Sensor Array Improved Signal Interpreter IFF Parser Improved Terrain Scanner Experimental Terrain Scanner Surveybot 17 Chip Seismic Detector Hacking Suite Makeshift Hacking Suite Plasma Cannon Subdweller Machine Gun Grenade Launcher [Rating: 22] Favorites ----------- Power Improved Ion Engine Engine Improved Ion Engine Power Core Nuclear Core Propulsion Wheel Wheel Wheel Utility Large Storage Unit Device Seismic Detector Storage Large Storage Unit Protection Improved Light Armor Plating Weapon Assault Rifle Energy Gun Subdweller Laser Ballistic Gun Assault Rifle Ballistic Cannon Gauss Cannon Special Weapon Enhanced Flamer Special Melee Weapon Improved Datajack Build | -11 -10 -10 -8 ------- Run | Yrd Mat Sub Scr Slots Evolved . | . . . . Power . | . . . . Propulsion . | . . . . Utility . | . . . . Weapon . | . . . . Parts Attached 27 | 9 2 2 14 Power 7 | 2 . 1 4 Engine 6 | 2 . 1 3 Core 1 | . . . 1 Reactor . | . . . . Propulsion 4 | 2 . . 2 Treads . | . . . . Leg . | . . . . Wheel 4 | 2 . . 2 Hover . | . . . . Flight . | . . . . Utility 7 | 2 2 . 3 Device 2 | 1 . . 1 Storage 4 | 1 2 . 1 Processor . | . . . . Hackware . | . . . . Protection 1 | . . . 1 Artifact . | . . . . Weapon 9 | 3 . 1 5 Energy Gun 3 | 1 . 1 1 Energy Cannon . | . . . . Ballistic Gun 3 | 2 . . 1 Ballistic Cannon 1 | . . . 1 Launcher . | . . . . Special Weapon 1 | . . . 1 Impact Weapon . | . . . . Slashing Weapon . | . . . . Piercing Weapon . | . . . . Special Melee Weapon 1 | . . . 1 Unidentified Prototypes . | . . . . Corrupted Parts 2 | . . . 2 System Corruption 4 | . . . 4 Parts Lost 6 | . . 1 5 Power . | . . . . Propulsion 1 | . . . 1 Utility 1 | . . . 1 Weapon 4 | . . 1 3 Highest Loss Streak 4 | . . 1 4 To Critical Strikes . | . . . . Average Backups 12 | 4 9 10 12 Power 1 | . 2 2 2 Propulsion 2 | 2 3 3 2 Utility 3 | . 2 2 3 Weapon 3 | . 1 2 3 Tool/Special . | . . . . Unused Backups 22 | 2 . 2 18 Power 1 | . . 1 . Propulsion 6 | 2 . . 4 Utility 12 | . . 1 11 Weapon 3 | . . . 3 Tool/Special . | . . . . Average Slot Usage (%) 99 | . 100 100 99 Engine 12 | . 14 14 12 Core 1 | . . . 1 Wheel 28 | . 28 28 28 Device 13 | . 14 14 13 Storage 14 | . 14 14 14 Energy Gun 5 | . 4 12 4 Ballistic Gun 21 | . 23 15 22 Peak Build Rating 22 | 8 8 10 22 Average Rating 11 | 5 8 9 12 On Entrance 6 | . 8 8 10 Naked Turns . | . . . . Heaviest Build 40 | 15 30 32 40 Greatest Support 32 | 20 20 20 32 Greatest Overweight (x) 2 | 2 1 1 1 Average Overweight (x) . | . . 1 . Largest Inventory Capacity 15 | 8 15 15 15 Average Capacity 14 | 7 13 15 15 Most Carried 15 | 8 10 15 15 Average Carried 14 | 4 9 13 14 Final Capacity 15 | 8 15 15 15 Final Carried 15 | 8 10 15 14 Class Distribution -------------------- 98% | Mutant Dominant Class ---------------- Mutant | -10/Materials Mutant | -10/Subcaves Mutant | -8/Scraptown Resources | -11 -10 -10 -8 ----------- Run | Yrd Mat Sub Scr Matter Collected 611 | 308 . 118 185 Remotely . | . . . . Salvage Created 265 | 102 . 93 70 Parts 12 | 6 . 3 3 Haulers Intercepted . | . . . . Recyclers Shooed . | . . . . Parts Field Recycled . | . . . . Retrieved Matter . | . . . . Parts Self-Destructed 6 | . . 6 . Prevented . | . . . . Kills | -11 -10 -10 -8 ------- Run | Yrd Mat Sub Scr Combat Hostiles Destroyed 3 | . . 2 1 Guns 2 | . . 2 . Cannons 1 | . . . 1 Classes Destroyed 4 | 2 . 1 1 Tunneler 1 | 1 . . . Recycler 1 | 1 . . . Subdweller 2 | . . 2 . Scrapper 1 | . . . 1 Best Kill Streak 2 | 2 . 1 1 Combat Bots Only 1 | . . 1 1 Max Kills in Single Turn 1 | 1 . 1 1 Gunslinging . | . . . . Exploded . | . . . . Melee . | . . . . Uniques/NPCs Destroyed . | . . . . Combat | -11 -10 -10 -8 -------- Run | Yrd Mat Sub Scr Hostile Shots Fired 73 | . . 27 46 Missed 18 | . . 9 9 Hits 55 | . . 18 37 Projectile 55 | . . 18 37 Critical Strikes 1 | . . 1 . Damage Taken 1002 | . . 388 614 Core 255 | . . 125 130 Absorbed by Shields . | . . . . Core Remaining (%) 100 | 100 . . . Volleys Fired 22 | 3 4 14 1 Largest 2 | 2 1 2 2 Hottest 120 | 40 40 60 120 Shots Fired 40 | 6 4 28 2 Gun 38 | 6 4 28 . Cannon 1 | . . . 1 Launcher . | . . . . Special 1 | . . . 1 Kinetic 28 | 6 . 21 1 Thermal 1 | . . . 1 Explosive . | . . . . Electromagnetic 11 | . 4 7 . Robot Hit Streak 12 | 4 . 12 10 Robot Miss Streak 3 | . . 3 . Penetration Max . | . . . . Secondary Targets . | . . . . Shots Hit Robots 29 | 4 . 21 4 Core Hits 10 | 3 . 6 1 Critical Kills . | . . . . Critical Parts Destroyed . | . . . . Critical Strikes . | . . . . Melee Attacks 2 | . . . 2 Impact . | . . . . Slashing . | . . . . Piercing . | . . . . Sneak Attacks 2 | . . . 2 Combat Hostiles . | . . . . Follow-up Attacks . | . . . . Damage Inflicted 351 | 50 . 242 59 Guns 292 | 50 . 242 . Cannons 31 | . . . 31 Explosions . | . . . . Melee . | . . . . Ramming 16 | . . . 16 Kinetic 270 | 50 . 189 31 Thermal 12 | . . . 12 Explosive . | . . . . Electromagnetic 53 | . . 53 . Impact . | . . . . Slashing . | . . . . Piercing . | . . . . Highest Corruption 4 | . . . 4 Average Corruption 2 | . . . 2 Corruption Purged . | . . . . Corruption Blocked . | . . . . Overload Shots . | . . . . Overflow Damage . | . . . . Projectiles . | . . . . Explosions . | . . . . Melee . | . . . . Knockbacks . | . . . . Impact . | . . . . Kinetic . | . . . . Secondary . | . . . . Self-Inflicted Damage 7 | . . . 7 Shots . | . . . . Rammed 3 | . . . 3 Targets Rammed 3 | . . . 3 Kicked . | . . . . Crushed . | . . . . Highest Temperature 66 | . . . 66 Average Temperature 27 | . . . 27 Received Heat Transfer 252 | . . 18 234 Siege Activations . | . . . . Martial Activations . | . . . . Shielding Activations . | . . . . Robots Disrupted . | . . . . Combat Hostiles . | . . . . Robots Corrupted . | . . . . Combat Hostiles . | . . . . Parts Fried . | . . . . Impact Corruptions . | . . . . Robots Melted . | . . . . Combat Hostiles . | . . . . Parts Melted . | . . . . Heat Transferred 50 | . . . 50 Parts Sabotaged . | . . . . Parts Stolen . | . . . . Parts Stripped . | . . . . Power Chain Reactions . | . . . . Alert | -11 -10 -10 -8 ------- Run | Yrd Mat Sub Scr Maximum Alert Level . | . . . . Low Security (%) 100 | 100 100 . . Level 1 . | . . . . Level 2 . | . . . . Level 3 . | . . . . Level 4 . | . . . . Level 5 . | . . . . High Security . | . . . . Max Security . | . . . . Peak Influence 30 | 5 30 . . Initial . | . . . . Average 2 | 1 3 . . Influence Increases 59 | 10 49 . . Destroy 0b10 Robot/NC 10 | 10 . . . Successful Hack 19 | . 19 . . Lose Combat Pursuer 30 | . 30 . . Influence Decreases 59 | 10 19 30 . Entered New Map 15 | . . 15 . Time Decay 44 | 10 19 15 . Squads Dispatched . | . . . . Investigation . | . . . . Extermination . | . . . . Reinforcement . | . . . . Assault . | . . . . Garrison . | . . . . Intercept . | . . . . Searches Triggered . | . . . . Construction Impeded . | . . . . Haulers Reinforced . | . . . . Active Scanning Responses . | . . . . Cargo Convoy Interrupts . | . . . . Stealth | -11 -10 -10 -8 --------- Run | Yrd Mat Sub Scr Distress Signals 1 | . 1 . . Communications Jammed . | . . . . Distress Signals . | . . . . Times Spotted 26 | . 1 6 19 Peak Tracking Total 10 | . 3 2 10 Tactical Retreats 1 | . 1 . . Traps | -11 -10 -10 -8 ------- Run | Yrd Mat Sub Scr Traps Triggered 1 | . . 1 . Indirectly . | . . . . Trap Hack Attempts . | . . . . Triggered . | . . . . Disarmed . | . . . . Reprogrammed . | . . . . Reused . | . . . . Traps Extracted . | . . . . Installed . | . . . . Triggered . | . . . . Machines | -11 -10 -10 -8 ---------- Run | Yrd Mat Sub Scr Machines Disabled . | . . . . Max in Single Turn . | . . . . Machines Repaired . | . . . . Machines Dismantled . | . . . . Machines Sabotaged . | . . . . Overloaded Fab Kills . | . . . . Hacking | -11 -10 -10 -8 --------- Run | Yrd Mat Sub Scr Machines Accessed 8 | . 2 . 6 Terminals 2 | . 2 . . Fabricators . | . . . . Repair Stations . | . . . . Recycling Units . | . . . . Scanalyzers . | . . . . Garrison Access . | . . . . Total Hacks 50 | . 6 . 44 Successful 47 | . 3 . 44 Failed 3 | . 3 . . Catastrophic . | . . . . Database Lockouts . | . . . . Manual 2 | . 2 . . Terminals 6 | . 6 . . Fabricators . | . . . . Repair Stations . | . . . . Recycling Units . | . . . . Scanalyzers . | . . . . Garrison Access . | . . . . Terminal Hacks 47 | . 3 . 44 Record 44 | . 1 . 43 Prototype ID Bank 1 | . 1 . . Zone Layout 1 | . 1 . . Proto ID Catalog 1 | . . . 1 Fabricator Hacks . | . . . . Repair Station Hacks . | . . . . Recycling Unit Hacks . | . . . . Scanalyzer . | . . . . Garrison Access Hacks . | . . . . Unauthorized Hacks . | . . . . Terminals . | . . . . Fabricators . | . . . . Repair Stations . | . . . . Recycling Units . | . . . . Scanalyzers . | . . . . Garrison Access . | . . . . Data Cores Recovered . | . . . . Used . | . . . . Hacking Detections 1 | . 1 . . Full Trace Events . | . . . . Feedback Events . | . . . . Feedback Blocked . | . . . . Robot Schematics Acquired . | . . . . Robots Built . | . . . . Authchips . | . . . . Time . | . . . . Total Robot Build Rating . | . . . . Part Schematics Acquired . | . . . . Parts Built . | . . . . Authchips . | . . . . Time . | . . . . Total Part Build Rating . | . . . . Parts Repaired . | . . . . Time . | . . . . Parts Recycled . | . . . . Recycled Matter . | . . . . Retrieved Matter . | . . . . Retrieved Components . | . . . . Parts Scanalyzed . | . . . . Part Schematics Acquired . | . . . . Parts Damaged . | . . . . Bothacking | -11 -10 -10 -8 ------------ Run | Yrd Mat Sub Scr Used RIF Installer . | . . . . Robots Hacked 2 | . . . 2 Non-combat 1 | . . . 1 Combat 1 | . . . 1 Robot Hacks Applied 2 | . . . 2 parse_system 2 | . . . 2 Relay Couplers Released . | . . . . Fabnet Peak Effective % . | . . . . Robots Rewired . | . . . . Allies Hacked . | . . . . Hacks Repelled . | . . . . Allies | -11 -10 -10 -8 -------- Run | Yrd Mat Sub Scr Total Allies . | . . . . Largest Group . | . . . . Highest-Rated Group . | . . . . Highest-Rated Ally . | . . . . Total Orders 1 | . . . 1 RETURN 1 | . . . 1 Ally Attacks . | . . . . Total Damage . | . . . . Kills . | . . . . Allies Corrupted . | . . . . Allies Melted 3 | . . . 3 Intel | -11 -10 -10 -8 ------- Run | Yrd Mat Sub Scr Active Infowar (turns) 2873 | 18 136 423 2296 Seismic 2873 | 18 136 423 2296 Robot Analysis Total . | . . . . Derelict Logs Recovered 3 | . . . 3 Drone Launches 3 | . . . 3 Drone Recoveries 3 | . . . 3 Exploration | -11 -10 -10 -8 ------------- Run | Yrd Mat Sub Scr Turns Passed 3057 | 93 136 423 2405 Spaces Moved 2880 | 76 122 320 2362 Core 21 | 21 . . . Treads . | . . . . Legs . | . . . . Wheels 2859 | 55 122 320 2362 Hover . | . . . . Flight . | . . . . Fastest Speed 50 | 50 80 95 95 Average Speed 94 | 74 90 95 95 Slowest Speed 150 | 150 95 95 112 Overloaded Moves . | . . . . Propulsion Burnouts . | . . . . Robots Hopped . | . . . . Potential Cave-ins . | . . . . Cave-ins Triggered . | . . . . Exploration Rate (%) 36 | 4 18 28 96 Regions Visited 3 Branch Regions 2 Pre-discovered Areas 6 | . . . 6 Known Exits Taken . | . . . . Unknown Exits Taken 3 | 1 1 1 . Scrap Searched 6 | . . 1 5 Spaces Dug . | . . . . Terrain Destroyed . | . . . . Melee . | . . . . Projectile . | . . . . AOE . | . . . . Terrain Rammed . | . . . . Walls Destroyed . | . . . . Machines Disabled . | . . . . Actions | -11 -10 -10 -8 --------- Run | Yrd Mat Sub Scr Total 3165 | 102 144 412 2507 Wait 150 | 4 12 61 73 Move 2877 | 75 121 319 2362 Hop . | . . . . Pick Up 40 | 9 2 10 19 Fast Attach 11 | 7 . . 4 Attach 6 | . . 1 5 Detach 1 | . . . 1 Swap 18 | 2 3 2 11 Drop 33 | 2 2 5 24 Fire 22 | 3 4 14 1 Melee 2 | . . . 2 Ram 3 | . . . 3 Kick . | . . . . Crush . | . . . . Escape Stasis . | . . . . Rewire 2 | . . . 2 Trap . | . . . . Miscellaneous . | . . . . Route ------- -11/Scrapyard -10/Materials (discovered 2 exits: [Mat] / [*Sub]) -10/Subcaves -8/Scraptown (discovered 2 exits: [*Fac x2]) History --------- Turn | Location | Event 32 | -11/Scrapyard | Discovered new exit (range 14) 94 | -11/Scrapyard | Entered Materials 95 | -10/Materials | Met a group of wandering Federalists 157 | -10/Materials | Discovered new exit (range 3) 176 | -10/Materials | Discovered new exit (range 17) 230 | -10/Materials | Entered Subcaves 231 | -10/Subcaves | Continued accompanying wandering Federalists (6) 317 | -10/Subcaves | Build established: Mutant 363 | -10/Subcaves | Ambushed by Subdwellers from Twisted Machinery 437 | -10/Subcaves | Wandering Federalist uncovered a shortcut to Scraptown 653 | -10/Subcaves | Entered Scraptown 661 | -8/Scraptown | System corruption cleaned by C-Scrubber 870 | -8/Scraptown | Visited Spacefarers 1097 | -8/Scraptown | Scanned Subdweller tech in exchange for log data 1101 | -8/Scraptown | Learned location of Quarantine (-3) 1101 | -8/Scraptown | Learned Research terminal intel 1102 | -8/Scraptown | Learned location of Testing (-2) 1115 | -8/Scraptown | Discovered new exit (range 7) 1160 | -8/Scraptown | Visited TADAMA 1201 | -8/Scraptown | Visited Observation Area 1241 | -8/Scraptown | Heard Great Nut preacher, LISTEN AND RECITE! 1279 | -8/Scraptown | Visited Cave Peace 1306 | -8/Scraptown | Visited Comm Corps 1485 | -8/Scraptown | Visited UFD Registry 1485 | -8/Scraptown | Registered with UFD as "Rusttank" 1519 | -8/Scraptown | Visited Awakened 1543 | -8/Scraptown | Visited The Evicted 1630 | -8/Scraptown | Guru changed UFD alias to "Hammereater" 1988 | -8/Scraptown | Visited Chapter 10 2027 | -8/Scraptown | Visited Scrap Suit Storage 2063 | -8/Scraptown | Visited Scrapoid Pod Storage 2250 | -8/Scraptown | Visited Scrapoid Research Area 2279 | -8/Scraptown | Visited Infowarlord's Domain 2293 | -8/Scraptown | Visited Research Penetration Think Tank 2313 | -8/Scraptown | Visited Cartography Club 2387 | -8/Scraptown | Discovered new exit (range 12) 2407 | -8/Scraptown | Found Surveybot 17 Chip 2528 | -8/Scraptown | Learned location of Proximity Caves (-6) 2528 | -8/Scraptown | Learned location of Cetus (-6) 2528 | -8/Scraptown | Learned 12 Factory zone layouts 2528 | -8/Scraptown | Learned 16 Factory zone layouts 2528 | -8/Scraptown | Learned 20 Factory zone layouts 2528 | -8/Scraptown | Learned 16 Research zone layouts 2528 | -8/Scraptown | Learned 4 Mines zone layouts 2528 | -8/Scraptown | Learned 12 Upper Caves zone layouts 2528 | -8/Scraptown | Learned Storage emergency access door positions 2528 | -8/Scraptown | Learned location of 2 exits from Factory 2528 | -8/Scraptown | Learned location of 3 exits from Proximity Caves 2637 | -8/Scraptown | Visited Botcube Research 2661 | -8/Scraptown | Visited DA-N13 Charitable Foundation 2669 | -8/Scraptown | Found DCF Scrap (28 items) 2771 | -8/Scraptown | Visited Science Guys 2868 | -8/Scraptown | Met Optimus 2868 | -8/Scraptown | Accepted into 0bPrime 2978 | -8/Scraptown | Found Exp. Terrain Scanner 2996 | -8/Scraptown | Civil war broke out across Scraptown 2998 | -8/Scraptown | Core integrity fell below 50% 3020 | -8/Scraptown | Found Deep Structural Scanner 3057 | -8/Scraptown | Core integrity fell below 20% 3058 | -8/Scraptown | Destroyed by VR-4YM(j) with Overtuned Pulse Rifle Last Messages --------------- 03018_ WV-WKW(x) destroyed. 03020_ Dropped Structural Scanner. 03020_ Acquired Deep Structural Scanner. 03022_ Dropped Sub. Laser. 03022_ Acquired Mak. Hacking Suite. 03025_ V9-WBF(E): "We are one!" 03032_ Acquired 45 matter. 03037_ SZ-PCE(j): "Make peace, not pieces!" 03041_ MY-8YC(j) destroyed. 03055_ Bolt penetrates Wall. 03055_ Slammed into SZ-PCE(j). 03056_ Sub. Monowheel destroyed. 03056_ Penetrated by Bolt. 03056_ Gauss Cannon destroyed. 03056_ Slammed into EG-RJY(h). 03057_ Enh. Flamer destroyed. 03057_ Imp. Light Armor Plating destroyed. 03057_ Slammed into 7C-JNA(j). 03057_ Bolt penetrates VR-4YM(j). 03057_ Penetrated by Bolt. Map ----- +----------------------------------------------------+ | | | | | | | | | | | | | | | | | | | | | ?????????????????????????????????????????????????? | | ?????????????????????????????????????????????????? | | ?????????????????????????????????????????????????? | | ?????????????????????????????????????????????????? | | ?????????????????????????????????????????????????? | | ?????????????????????????????????????????????????? | | ?????????????????????????????????????????????????? | | ?????????????????????????????????????????????????? | | ???????????#????????#????????????????????????????? | | ??????????????????????????????#??????????????????? | | ??????????????#?###????##?????#??????????????????? | | ???????????????#??#?###?#####?#??????????????????? | | ????????????#########?###"""###??????????????????? | | #############?######?#?##"x"!###?#???????????????? | | "##""|##"""##### !###?###xjj#?###????????????????? | | ##"" ##!!"###! [!=######@jj#####?#??????????????? | | /%=%/%!=%!=[[!jh=%#####??#????????????? | | !=! !=%[![!!hh=!!########?#??????????? | | #########"##### !*=###############?#??#??????????? | | ???#??###?######%!#"#?##############?#???????????? | | ??????###?###??#[ ##! # # # ##?######?????????? | | ????##?######### ###"# # # ## ###?#####?????????? | | ?#??##"??"""""## #!##### # #####?##??????????? | | ??????" "## # #= # # #########?#???????? | | ?##???" "?# # # ## #### ######??#??????????? | | ##???#"" ""??"?# =# # # # ####?##???#????????? | | #??####"#######*%# ####X# ##?######??????????? | | #??#"" """"" !# ## #### # #?#######?#????????? | | !#?##"" """" # # # ######???##???????? | | [##?# " &""#* ######%## ####?##??#?#?????????? | | #??#" """#%=# =!*/ ####?###??#???????? | | #??#" #= # =% ##########????????? | | ##??###### ##### ## ###################?????????? | | #########" ##### ## ###?##?######?######????????? | | """""""""" """"" =[! #############?##??#????????? | | % % [%= ! % "# " """"##?##?#???????????? | | ! !!!=! %[ "## ""###??####?????????? | | =!%!! "## "#######?#?????????? | | [%[== "## ""##?#?##???????????? | | = ""#####?#???????????? | +----------------------------------------------------+ Best States ------------- Heat Dissipation 25 Energy Generation 15 Energy Capacity 275 Matter Stores 300 Matter Capacity 300 Sight Range 16 Terrain Scan Density 10 Armor Coverage 150 Evasion (%) 50 Item Schematics ----------------- None Robot Schematics ------------------ None Fabricated ------------ Nothing Repaired ---------- Nothing Alien Tech Used ----------------- None Achievements -------------- None Challenges ------------ None Game ------ Seed DrainedDispersionBeacon Manual? 0 Play Time 01:00:39 Cumulative 72.3 hours Start 2025.05.06 @ 20:01:17 End 2025.05.06 @ 22:01:07 Sessions 3 Manual Loads 0 Difficulty Rogue Special Mode None Game No. 34 Rogue 34 Adventurer 0 Explorer 0 Win Type - Total 3 Types 3/0/0/0/0/0/0/0/0/0 Lore% 48 Gallery% 45 Achievement% 34 Wizard Run 0 Options --------- Layout 0 ASCII 0 Keyboard 1 Movement Numpad Keybinds 0 Fullscreen 1 Font 18/Cog Map View 76x50 Zoom Use 0% Tactical HUD 1 Map Filters NONE Filters NONE Steam 1 RUN: efb7cec5-c708-4c43-8ded-7f36ec57a444